fUSD/lending_fUSD_20240718
["ID","MTS","AMOUNT","RATE_DAILY","PERIOD"]
[332571804,1721297446619,-500.0,0.0003589,14]
[332571805,1721297446629,-500.0,0.0003589,14]
[332571806,1721297446638,-500.0,0.0003589,14]
[332571807,1721297446648,-500.0,0.0003589,14]
[332571808,1721297446658,-500.0,0.0003589,14]
[332571809,1721297446667,-500.0,0.0003589,14]
[332571810,1721297446676,-500.0,0.0003589,14]
[332571811,1721297446685,-500.0,0.0003589,14]
[332571812,1721297446694,-636.08,0.0003589,14]
[332571813,1721297446703,-500.0,0.0003589,14]
[332571814,1721297446713,-500.0,0.0003589,14]
[332571815,1721297446723,-500.0,0.0003589,14]
[332571816,1721297446733,-500.0,0.0003589,14]
[332571817,1721297446742,-500.0,0.0003589,14]
[332571818,1721297446752,-500.0,0.0003589,14]
[332571819,1721297446761,-500.0,0.0003589,14]
[332571820,1721297446770,-500.0,0.0003589,14]
[332571821,1721297446779,-500.0,0.0003589,14]
[332571822,1721297446788,-500.0,0.0003589,14]
[332571823,1721297446798,-452.63634111,0.0003589,14]
[332571824,1721297446807,-500.0,0.0003589,14]
[332571825,1721297446817,-500.0,0.0003589,14]
[332571826,1721297446826,-500.0,0.0003589,14]
[332571827,1721297446836,-500.0,0.0003589,14]
[332571828,1721297446845,-500.0,0.0003589,14]
[332571829,1721297446854,-1049.59,0.0003589,14]
[332571830,1721297446863,-500.0,0.0003589,14]
[332571831,1721297446872,-500.0,0.0003589,14]
[332571832,1721297446881,-177.35674562,0.0003589,14]
[332571833,1721297446890,-500.0,0.0003589,14]
[332571834,1721297446899,-500.0,0.0003589,30]
[332571835,1721297446909,-500.0,0.0003589,14]
[332571836,1721297446919,-500.0,0.0003589,14]
[332571837,1721297446928,-500.0,0.0003589,14]
[332571838,1721297446937,-500.0,0.0003589,14]
[332571839,1721297446947,-500.0,0.0003589,14]
[332571840,1721297446958,-500.0,0.0003589,2]
[332571841,1721297446967,-500.0,0.0003589,14]
[332571842,1721297446977,-500.0,0.0003589,14]
[332571843,1721297446986,-500.0,0.0003589,14]
[332571844,1721297446995,-412.8274837,0.0003589,14]
[332571845,1721297447005,-500.0,0.0003589,14]
[332571846,1721297447014,-500.0,0.0003589,14]
[332571847,1721297447023,-500.0,0.0003589,14]
[332571848,1721297447032,-500.0,0.0003589,14]
[332571849,1721297447041,-500.0,0.0003589,14]
[332571850,1721297447050,-500.0,0.0003589,14]
[332571851,1721297447059,-500.0,0.0003589,14]
[332571852,1721297447068,-500.0,0.0003589,14]
[332571853,1721297447080,-648.52542528,0.0003589,14]
[332571854,1721297447089,-500.0,0.0003589,14]
[332571855,1721297447098,-500.0,0.0003589,14]
[332571856,1721297447107,-500.0,0.0003589,14]
[332571857,1721297447116,-500.0,0.0003589,14]
[332571858,1721297447126,-500.0,0.0003589,14]
[332571859,1721297447135,-500.0,0.0003589,14]
[332571860,1721297447144,-500.0,0.0003589,14]
[332571861,1721297447155,-500.0,0.0003589,14]
[332571862,1721297447164,-500.0,0.0003589,14]
[332571863,1721297447174,-500.0,0.0003589,14]
[332571864,1721297447184,-500.0,0.0003589,14]
[332571865,1721297447194,-500.0,0.0003589,14]
[332571866,1721297447203,-500.0,0.0003589,14]
[332571867,1721297447213,-580.10540648,0.0003589,14]
[332571868,1721297447222,-500.0,0.0003589,14]
[332571869,1721297447231,-500.0,0.0003589,14]
[332571870,1721297447240,-500.0,0.0003589,14]
[332571871,1721297447250,-500.0,0.0003589,14]
[332571872,1721297447259,-500.0,0.0003589,14]
[332571873,1721297447270,-500.0,0.0003589,14]
[332571874,1721297447280,-500.0,0.0003589,14]
[332571875,1721297447289,-500.0,0.0003589,14]
[332571876,1721297447299,-500.0,0.0003589,14]
[332571877,1721297447308,-500.0,0.0003589,14]
[332571878,1721297447317,-500.0,0.0003589,14]
[332571879,1721297447327,-500.0,0.0003589,14]
[332571880,1721297447338,-500.0,0.0003589,14]
[332571881,1721297447347,-500.0,0.0003589,14]
[332571882,1721297447357,-500.0,0.0003589,14]
[332571883,1721297447366,-500.0,0.0003589,14]
[332571884,1721297447376,-500.0,0.0003589,14]
[332571885,1721297447385,-500.0,0.0003589,14]
[332571886,1721297447395,-500.0,0.0003589,14]
[332571887,1721297447404,-500.0,0.0003589,14]
[332571888,1721297447414,-500.0,0.0003589,14]
[332571889,1721297447425,-500.0,0.0003589,14]
[332571890,1721297447434,-500.0,0.0003589,14]
[332571891,1721297447443,-500.0,0.0003589,14]
[332571892,1721297447456,-248.51097886,0.0003589,14]
[332571893,1721297447480,-251.48902114,0.0003589,14]
[332571894,1721297447489,-99.84050296,0.0003589,14]
[332571895,1721297447914,-300.0,0.00015999,2]
[332571896,1721297447923,-7007.43495099,0.00028891,2]
[332571897,1721297447935,-943.31862009,0.00028891,2]
[332571898,1721297447946,-1283.8450912,0.00028891,2]
[332571899,1721297447956,-734.01641473,0.00028891,2]
[332571900,1721297447975,-1086.34273564,0.00028891,2]
[332571901,1721297447991,-4063.28021885,0.00028891,2]
[332571902,1721297448000,-536.0,0.00035,5]
[332571903,1721297448010,-203.0,0.00035176,2]
[332571904,1721297448019,-344.33,0.0003588,3]
[332571905,1721297448030,-400.15949704,0.0003589,14]
[332571906,1721297448040,-500.0,0.0003589,14]
[332571907,1721297448049,-500.0,0.0003589,14]
[332571908,1721297448058,-500.0,0.0003589,14]
[332571909,1721297448068,-500.0,0.0003589,14]
[332571910,1721297448081,-500.0,0.0003589,14]
[332571911,1721297448091,-500.0,0.0003589,14]
[332571912,1721297448101,-500.0,0.0003589,14]
[332571913,1721297448110,-500.0,0.0003589,14]
[332571914,1721297448121,-500.0,0.0003589,14]
[332571915,1721297448131,-500.0,0.0003589,14]
[332571916,1721297448140,-500.0,0.0003589,14]
[332571917,1721297448150,-500.0,0.0003589,14]
[332571918,1721297448159,-500.0,0.0003589,14]
[332571919,1721297448172,-500.0,0.0003589,14]
[332571920,1721297448182,-500.0,0.0003589,14]
[332571921,1721297448192,-500.0,0.0003589,14]
[332571922,1721297448201,-500.0,0.0003589,14]
[332571923,1721297448211,-500.0,0.0003589,14]
[332571924,1721297448221,-500.0,0.0003589,14]
[332571925,1721297448231,-500.0,0.0003589,14]
[332571926,1721297448240,-566.21449218,0.0003589,14]
[332571927,1721297448250,-500.0,0.0003589,14]
[332571928,1721297448260,-500.0,0.0003589,14]
[332571929,1721297448270,-500.0,0.0003589,14]
[332571930,1721297448280,-500.0,0.0003589,14]
[332571931,1721297448290,-500.0,0.0003589,14]
[332571932,1721297448299,-500.0,0.0003589,14]
[332571933,1721297448309,-500.0,0.0003589,14]
[332571934,1721297448318,-500.0,0.0003589,14]
[332571935,1721297448328,-500.0,0.0003589,14]
[332571936,1721297448337,-1608.93,0.0003589,14]
[332571937,1721297448347,-500.0,0.0003589,14]
[332571938,1721297448356,-500.0,0.0003589,14]
[332571939,1721297448366,-500.0,0.0003589,14]
[332571940,1721297448376,-500.0,0.0003589,14]
[332571941,1721297448387,-500.0,0.0003589,14]
[332571942,1721297448396,-500.0,0.0003589,14]
[332571943,1721297448406,-500.0,0.0003589,14]
[332571944,1721297448415,-500.0,0.0003589,14]
[332571945,1721297448426,-500.0,0.0003589,14]
[332571946,1721297448435,-500.0,0.0003589,14]
[332571947,1721297448445,-500.0,0.0003589,14]
[332571948,1721297448455,-500.0,0.0003589,14]
[332571949,1721297448465,-500.0,0.0003589,14]
[332571950,1721297448476,-500.0,0.0003589,14]
[332571951,1721297448486,-500.0,0.0003589,14]
[332571952,1721297448496,-1781.73,0.0003589,14]
[332571953,1721297448507,-500.0,0.0003589,14]
[332571954,1721297448516,-500.0,0.0003589,14]
[332571955,1721297448527,-500.0,0.0003589,14]
[332571956,1721297448536,-500.0,0.0003589,14]
[332571957,1721297448545,-500.0,0.0003589,14]
[332571958,1721297448554,-500.0,0.0003589,14]
[332571959,1721297448563,-500.0,0.0003589,14]
[332571960,1721297448573,-500.0,0.0003589,14]
[332571961,1721297448582,-500.0,0.0003589,14]
[332571962,1721297448592,-500.0,0.0003589,14]
[332571963,1721297448601,-500.0,0.0003589,14]
[332571964,1721297448610,-500.0,0.0003589,14]
[332571965,1721297448619,-500.0,0.0003589,14]
[332571966,1721297448628,-500.0,0.0003589,14]
[332571967,1721297448637,-500.0,0.0003589,14]
[332571968,1721297448647,-500.0,0.0003589,14]
[332571969,1721297448656,-500.0,0.0003589,14]
[332571970,1721297448665,-500.0,0.0003589,14]
[332571971,1721297448675,-500.0,0.0003589,14]
[332571972,1721297448684,-500.0,0.0003589,14]
[332571973,1721297448693,-500.0,0.0003589,14]
[332571974,1721297448703,-500.0,0.0003589,14]
[332571975,1721297448712,-500.0,0.0003589,14]
[332571976,1721297448722,-500.0,0.0003589,14]
[332571977,1721297448732,-500.0,0.0003589,14]
[332571978,1721297448741,-500.0,0.0003589,14]
[332571979,1721297448751,-521.48,0.0003589,14]
[332571980,1721297448759,-500.0,0.0003589,14]
[332571981,1721297448768,-500.0,0.0003589,14]
[332571982,1721297448778,-500.0,0.0003589,14]
[332571983,1721297448789,-500.0,0.0003589,14]
[332571984,1721297448799,-500.0,0.0003589,14]
[332571985,1721297448807,-500.0,0.0003589,14]
[332571986,1721297448817,-1958.45,0.0003589,14]
[332571987,1721297448827,-500.0,0.0003589,14]
[332571988,1721297448836,-500.0,0.0003589,14]
[332571989,1721297448846,-500.0,0.0003589,14]
[332571990,1721297448857,-1510.87,0.0003589,14]
[332571991,1721297448867,-500.0,0.0003589,14]
[332571992,1721297448877,-500.0,0.0003589,14]
[332571993,1721297448887,-500.0,0.0003589,14]
[332571994,1721297448897,-500.0,0.0003589,14]
[332571995,1721297448906,-500.0,0.0003589,14]
[332571996,1721297448917,-500.0,0.0003589,14]
[332571997,1721297448927,-500.0,0.0003589,14]
[332571998,1721297448937,-500.0,0.0003589,14]
[332571999,1721297448947,-500.0,0.0003589,14]
[332572000,1721297448957,-500.0,0.0003589,14]
[332572001,1721297448967,-500.0,0.0003589,14]
[332572002,1721297448977,-500.0,0.0003589,14]
[332572003,1721297448988,-500.0,0.0003589,14]
[332572004,1721297448998,-500.0,0.0003589,14]
[332572005,1721297449008,-500.0,0.0003589,14]
[332572006,1721297449018,-500.0,0.0003589,14]
[332572007,1721297449027,-1753.24,0.0003589,14]
[332572008,1721297449037,-500.0,0.0003589,14]
[332572009,1721297449047,-501.0,0.0003589,14]
[332572010,1721297449057,-500.0,0.0003589,14]
[332572011,1721297449067,-518.68,0.0003589,14]
[332572012,1721297449079,-500.0,0.0003589,14]
[332572013,1721297449092,-500.0,0.0003589,14]
[332572014,1721297449102,-500.0,0.0003589,14]
[332572015,1721297449112,-500.0,0.0003589,14]
[332572016,1721297449123,-48.61112713,0.0003589,14]
[332572017,1721297449154,-451.38887287,0.0003589,14]
[332572018,1721297449165,-368.78433157,0.0003589,14]
[332572019,1721297449175,-1389.91,0.0003589,14]
[332572020,1721297449185,-465.02798659,0.0003589,14]
[332572021,1721297449195,-34.97201341,0.0003589,14]
[332572022,1721297449204,-465.02798659,0.0003589,14]
[332572023,1721297501324,95.20368841,0.00013699,2]
[332572024,1721297501345,104.79631159,0.00013699,2]
[332572025,1721297542669,45.20368841,0.00013699,2]
[332572026,1721297542690,151.37961908,0.00013699,2]
[332572027,1721297586890,45.80265328,0.00013699,2]
[332572028,1721297586911,135.64110233,0.00013699,2]
[332572029,1721297600098,14.35889767,0.00013699,2]
[332572030,1721297600120,150.0,0.00013699,2]
[332572031,1721297600146,135.77064295,0.00013699,2]
[332572032,1721297677843,254.90397989,0.00013699,2]
[332572033,1721297703114,260.66306412,0.00013699,2]
[332572034,1721297718626,200.0,0.00013699,2]
[332572035,1721297777449,4316.53373701,0.00025,120]
[332572036,1721297922491,200.0,0.00013699,2]
[332572037,1721297992494,200.0,0.00013699,2]
[332572038,1721298062636,260.29305852,0.00013699,2]
[332572041,1721298330143,17698.07310495,0.000118,2]
[332572044,1721298356412,104983.42547092,0.0001358,2]
[332572045,1721298357004,156.01039405,6.94e-05,2]
[332572050,1721298396703,200.0,0.00013699,2]
[332572053,1721298485212,938.66165976,0.0001,2]
[332572058,1721298524040,210.47425429,0.0001,2]
[332572059,1721298537554,200.0,0.00013699,2]
[332572061,1721298584147,599.45308107,0.00012121,2]
[332572062,1721298585158,358.95210473,0.00012121,2]
[332572070,1721298633651,-179.06737615,0.00014692,2]
[332572071,1721298633662,-250.0,0.00015,2]
[332572072,1721298633673,-297.96726833,0.00015,14]
[332572073,1721298633684,-33.73189008,0.00015656,2]
[332572074,1721298633697,-145.87838688,0.00015656,2]
[332572075,1721298633707,-401.67620204,0.00015755,2]
[332572076,1721298633717,-2335.69890556,0.0001601,2]
[332572077,1721298633728,-269.9862709,0.00016011,2]
[332572078,1721298633738,-3419.59933731,0.00016985,2]
[332572079,1721298633748,-300.0,0.00017,2]
[332572080,1721298633757,-300.0,0.00017533,2]
[332572081,1721298633767,-155.0,0.00017533,2]
[332572082,1721298633776,-299.99,0.00017534,4]
[332572083,1721298633786,-391.75,0.00017808,2]
[332572084,1721298633795,-350.0,0.00019,2]
[332572085,1721298633804,-1000.0,0.00019269,2]
[332572086,1721298633814,-492.67774131,0.00019451,2]
[332572087,1721298633823,-982.71,0.00019452,2]
[332572088,1721298633833,-411.19026005,0.00019892,2]
[332572089,1721298633842,-23134.56771354,0.00019893,2]
[332572090,1721298633851,-310.32110147,0.00020999,2]
[332572091,1721298633860,-467.14305953,0.00020999,2]
[332572093,1721298633870,-155.0,0.00021303,2]
[332572095,1721298633880,-150.0,0.00021304,2]
[332572097,1721298633891,-462.35,0.00021644,2]
[332572099,1721298633901,-155.17,0.00021644,2]
[332572101,1721298633911,-159.03,0.00021918,2]
[332572103,1721298633922,-794.18797398,0.00022,2]
[332572105,1721298633932,-1797.93976019,0.0002356,2]
[332572107,1721298633942,-591.80534039,0.00023833,2]
[332572109,1721298633954,-218.9943555,0.00023833,2]
[332572110,1721298633964,-183.69883469,0.00024079,2]
[332572111,1721298633974,-183.29710983,0.00024079,2]
[332572112,1721298633983,-785.86487976,0.0002408,2]
[332572113,1721298633993,-219.05934056,0.00024419,2]
[332572114,1721298634002,-300.0,0.00024419,2]
[332572115,1721298634012,-155.09501325,0.0002442,2]
[332572116,1721298634022,-1000.0,0.00025,22]
[332572117,1721298634031,-155.0,0.00025,2]
[332572118,1721298634041,-241.67615639,0.00025,2]
[332572119,1721298634050,-225.7013246,0.00025,2]
[332572120,1721298634060,-294.34,0.00025,10]
[332572121,1721298634069,-428.86,0.00025565,2]
[332572122,1721298634079,-14822.45,0.00025659,2]
[332572123,1721298634089,-150.0,0.00025935,2]
[332572124,1721298634099,-377.90747914,0.0002599,2]
[332572125,1721298634108,-1000.0,0.00026,22]
[332572126,1721298634118,-1000.0,0.00026,20]
[332572127,1721298634128,-1000.0,0.00026,25]
[332572128,1721298634138,-1000.0,0.00026,21]
[332572129,1721298634149,-4276.48628058,0.00026,2]
[332572130,1721298634159,-4433.65,0.00026,2]
[332572131,1721298634169,-1000.0,0.00026516,2]
[332572132,1721298634179,-179.88,0.00026803,2]
[332572133,1721298634189,-663.22709988,0.00026901,30]
[332572134,1721298634199,-165.08,0.0002692,2]
[332572135,1721298634208,-1000.0,0.00027,22]
[332572136,1721298634218,-1000.0,0.00027,20]
[332572137,1721298634230,-1042.0,0.00027,21]
[332572138,1721298634239,-2000.0,0.00027,2]
[332572139,1721298634249,-4427.3816825,0.00027,7]
[332572140,1721298634262,-3621.98509646,0.00027,7]
[332572141,1721298634271,-575.77893797,0.00027,2]
[332572142,1721298634281,-2463.323351,0.0002701,2]
[332572143,1721298634291,-3466.01,0.00027123,2]
[332572144,1721298634301,-435.11232082,0.00027397,2]
[332572145,1721298634310,-170.60459591,0.00027399,10]
[332572146,1721298634349,-112.19540409,0.00027399,10]
[332572147,1721298634359,-780.10493737,0.00027399,2]
[332572148,1721298634370,-1400.0,0.00027399,2]
[332572149,1721298634382,-2182.70506263,0.00027399,2]
[332572150,1721298634395,-3374.24772568,0.000274,2]
[332572151,1721298634406,-677.19120052,0.00027409,2]
[332572152,1721298634415,-1000.0,0.00027483,2]
[332572153,1721298634425,-190.06770495,0.000275,2]
[332572154,1721298634434,-500.0,0.00027525,2]
[332572155,1721298634444,-186.0,0.00027637,120]
[332572156,1721298634454,-388.13052358,0.00027714,2]
[332572157,1721298634466,-74.21947642,0.00027714,2]
[332572158,1721298634476,-304.81932425,0.00027777,2]
[332572159,1721298634492,-158.20839822,0.000278,2]
[332572160,1721298634502,-428.86,0.00027829,2]
[332572161,1721298634511,-250.0,0.00027974,2]
[332572162,1721298634521,-151.0,0.00027997,2]
[332572163,1721298634532,-1000.0,0.00028,20]
[332572164,1721298634542,-791.1285306,0.00028,2]
[332572168,1721298638467,-227.41308538,0.00026515,5]
[332572169,1721298638479,-235.67,0.00027473,10]
[332572170,1721298638490,-2562.20206707,0.00028,2]
[332572171,1721298638499,-621.62545807,0.00028,2]
[332572172,1721298638509,-171.23,0.00028149,2]
[332572173,1721298638521,-180.0,0.00028669,2]
[332572174,1721298638530,-1000.0,0.00029,22]
[332572175,1721298638539,-473.0,0.00029,28]
[332572176,1721298638549,-1000.0,0.00029,28]
[332572177,1721298638560,-1001.0,0.00029,22]
[332572178,1721298638569,-200.0,0.00029,2]
[332572179,1721298638579,-3221.39460204,0.00029,2]
[332572180,1721298638591,-1369.00711557,0.00029,2]
[332572181,1721298638602,-200.0,0.00029138,2]
[332572182,1721298638616,-172.48,0.00029271,2]
[332572183,1721298638627,-402.0100041,0.000296,2]
[332572184,1721298638653,-1390.99,0.000296,2]
[332572191,1721298638773,-557.69598799,0.000296,2]
[332572199,1721298640464,-1423.93462878,0.000296,2]
[332572200,1721298640477,-544.73245831,0.000296,2]
[332572201,1721298640488,-247.0438667,0.000296,2]
[332572202,1721298640500,-352.9561333,0.000296,2]
[332572203,1721298640510,-325.27851107,0.000296,2]
[332572204,1721298640519,-1796.17525719,0.000296,2]
[332572205,1721298640530,-500.0,0.00029696,2]
[332572206,1721298640539,-625.44799575,0.000298,2]
[332572207,1721298640661,-644.739999,0.000298,2]
[332572220,1721298643626,-2612.81200525,0.000298,2]
[332572221,1721298643636,-250.0,0.000299,2]
[332572222,1721298643646,-224.12602188,0.0002999,2]
[332572223,1721298643655,-164.11705754,0.0003,30]
[332572224,1721298643666,-155.0,0.0003,4]
[332572225,1721298643676,-421.0,0.0003,30]
[332572226,1721298643686,-1524.93482502,0.0003,2]
[332572227,1721298643697,-3909.65766542,0.0003,2]
[332572228,1721298643707,-1715.49302019,0.0003,2]
[332572229,1721298643717,-428.86,0.00030093,2]
[332572230,1721298643727,-150.0,0.00030323,2]
[332572231,1721298643737,-696.62579693,0.00031,2]
[332572232,1721298643746,-1000.0,0.00032,29]
[332572233,1721298643756,-3000.0,0.000321,2]
[332572234,1721298643765,-384.21069821,0.000321,2]
[332572235,1721298643775,-428.86,0.00032357,2]
[332572236,1721298643784,-637.617621,0.00033,14]
[332572237,1721298643793,-977.63083437,0.00033,2]
[332572238,1721298643805,-14458.69398186,0.00033,2]
[332572239,1721298643815,-177.52690118,0.000334,15]
[332572240,1721298643826,-156.55,0.000335,31]
[332572241,1721298643835,-1252.92148855,0.00033784,2]
[332572242,1721298643845,-462.35,0.00033785,2]
[332572243,1721298643855,-3898.68941045,0.00034301,2]
[332572244,1721298643866,-2248.95674392,0.00034301,2]
[332572245,1721298643882,-2170.35384563,0.00034301,2]
[332572246,1721298643893,-428.86,0.00034621,2]
[332572247,1721298643904,-150.0,0.0003471,2]
[332572248,1721298643914,-8506.03902399,0.0003478,15]
[332572249,1721298643923,-163.81016594,0.0003478,2]
[332572250,1721298643933,-188.40637287,0.0003478,2]
[332572251,1721298643942,-300.39723505,0.0003478,2]
[332572252,1721298643952,-8506.0390239,0.00034793,15]
[332572253,1721298643962,-8506.0390239,0.00034807,15]
[332572254,1721298643973,-188.40637286,0.0003481,2]
[332572255,1721298643984,-8506.0390239,0.0003482,15]
[332572256,1721298643994,-8506.0390239,0.00034833,15]
[332572257,1721298644003,-188.40637286,0.0003484,2]
[332572258,1721298644012,-8506.0390239,0.00034847,15]
[332572259,1721298644022,-8506.0390239,0.0003486,15]
[332572260,1721298644032,-188.40637286,0.0003487,2]
[332572261,1721298644043,-194.22494286,0.0003487,2]
[332572263,1721298644054,-8506.0390239,0.00034873,15]
[332572264,1721298644064,-538.00091805,0.00034877,2]
[332572265,1721298644074,-475126.25455881,0.0003488,2]
[332572266,1721298644083,-54829.4479479,0.0003488,2]
[332572267,1721298644092,-8506.0390239,0.00034887,15]
[332572268,1721298644102,-7500.0,0.000349,2]
[332572269,1721298644112,-6000.0,0.000349,120]
[332572270,1721298644121,-169.07856241,0.000349,7]
[332572271,1721298644132,-8506.0390239,0.000349,15]
[332572272,1721298644142,-188.40637286,0.000349,2]
[332572273,1721298644153,-163.6750579,0.000349,2]
[332572274,1721298644162,-352.73969535,0.000349,2]
[332572275,1721298644172,-151.09343036,0.000349,2]
[332572276,1721298644182,-896.0,0.00034904,20]
[332572277,1721298644191,-1858.0,0.00034986,4]
[332572278,1721298644201,-463.91045212,0.0003499,30]
[332572279,1721298644211,-200.0,0.0003499,7]
[332572280,1721298644220,-200.0,0.0003499,7]
[332572281,1721298644232,-4304.0073444,0.00034997,2]
[332572282,1721298644243,-1152.07979419,0.00034999,30]
[332572283,1721298644252,-150.0,0.00034999,7]
[332572284,1721298644262,-150.0,0.00034999,7]
[332572285,1721298644272,-2905.03485069,0.00035,2]
[332572286,1721298644282,-13416.65549582,0.00035,2]
[332572287,1721298644293,-10951.94015798,0.00035,21]
[332572288,1721298644735,-1045.17992011,0.00035,21]
[332572289,1721298644747,-91502.91238105,0.00035,21]
[332572290,1721298644766,-2076.19544807,0.00035,21]
[332572291,1721298644788,-6480.0,0.00035,21]
[332572292,1721298644807,-50781.75517474,0.00035,21]
[332572318,1721298646352,-626.08111507,0.00035,21]
[332572320,1721298646363,-561.73307862,0.00035,21]
[332572325,1721298646377,-50756.42281221,0.00035,21]
[332572328,1721298646389,-5619.15800013,0.00035,21]
[332572331,1721298646401,-538.14233343,0.00035,21]
[332572333,1721298646412,-852.56691666,0.00035,21]
[332572338,1721298646440,-3950.02651079,0.00035,21]
[332572341,1721298646452,-902.19057551,0.00035,21]
[332572344,1721298646463,-415.0,0.00035,21]
[332572364,1721298646589,-679.5054,0.00035,21]
[332572369,1721298646600,-2680.30189556,0.00035,21]
[332572376,1721298646631,-348.8603977,0.00035,21]
[332572379,1721298646642,-2133.07562019,0.00035,21]
[332572385,1721298646674,-493.70431179,0.00035,21]
[332572387,1721298646685,-6028.6047016,0.00035,21]
[332572391,1721298746877,150.0,0.00013699,2]
[332572392,1721298746898,50.0,0.00013699,2]
[332572395,1721298778863,1993.7833669,0.00013699,2]
[332572396,1721298820049,200.0,0.00013699,2]
[332572399,1721298890424,200.0,0.00013699,2]
[332572400,1721298959999,200.0,0.00013699,2]
[332572403,1721299047002,757.27168714,0.00013999,2]
[332572405,1721299436693,-4623.87,0.00015,2]
[332572406,1721299462148,305.90837372,0.00014999,2]
[332572407,1721299593184,409.89818705,0.00014999,2]
[332572408,1721299633714,584.49096916,0.00014999,2]
[332572409,1721299643338,236.13198388,0.00014999,2]
[332572413,1721299721759,237.12,0.00014999,2]
[332572414,1721299721782,92.23655342,0.00014999,2]
[332572415,1721299727957,200.0,0.00013699,2]
[332572416,1721299736960,329.35655342,0.00014999,2]
[332572417,1721299743733,462.574541,0.00014999,2]
[332572422,1721299833053,-3406.9084682,0.00015755,2]
[332572423,1721299833146,-1915.91841237,0.00015755,2]
[332572424,1721299833312,-919.70999,0.00015755,2]
[332572425,1721299833328,-4132.73460335,0.00015755,2]
[332572426,1721299833337,-300.0,0.00016017,2]
[332572427,1721299833347,-7342.15451422,0.00016018,2]
[332572428,1721299833358,-3033.1169597,0.00016018,2]
[332572429,1721299833367,-7550.64010588,0.000167,2]
[332572430,1721299833378,-347.96815075,0.000167,2]
[332572431,1721299833393,-250.0,0.000167,2]
[332572432,1721299833404,-704.92261432,0.000167,2]
[332572433,1721299833415,-2332.32978955,0.000167,2]
[332572435,1721299833427,-713.07366266,0.000167,2]
[332572437,1721299833438,-881.18671553,0.000167,2]
[332572438,1721299833447,-12.41055695,0.00017807,2]
[332572439,1721299833458,-316.94599647,0.00017807,2]
[332572440,1721299833468,-11069.910521,0.0001818,2]
[332572441,1721299833479,-404.4999995,0.0001818,2]
[332572442,1721299833489,-3164.75000067,0.0001818,2]
[332572443,1721299833515,-394.57005699,0.0001818,2]
[332572444,1721299833524,-168.20966181,0.0001818,2]
[332572446,1721299833533,-618.88492677,0.00018276,2]
[332572448,1721299833542,-618.88492677,0.00018395,2]
[332572449,1721299833551,-155.77596432,0.00018425,2]
[332572450,1721299833560,-214.75795509,0.00018439,2]
[332572451,1721299833570,-155.77596432,0.00018494,2]
[332572452,1721299833579,-253.0,0.0001857,2]
[332572453,1721299833588,-164.40762969,0.00018609,2]
[332572454,1721299833600,-454.47729708,0.00018609,2]
[332572455,1721299833610,-45.52270292,0.00018799,2]
[332572469,1721299837646,-110.469174,0.00018799,2]
[332572470,1721299837656,-155.77596432,0.0001897,2]
[332572471,1721299837666,-154.98095525,0.0001913,2]
[332572472,1721299837676,-154.71957347,0.00019133,2]
[332572473,1721299837686,-377.34,0.00019213,2]
[332572474,1721299837695,-155.77596432,0.00019563,2]
[332572475,1721299837705,-157.42441976,0.00019589,2]
[332572476,1721299837714,-151.42828932,0.00019597,2]
[332572477,1721299837723,-150.0,0.00019725,2]